[Event "Titled Tuesday Blitz December 27 Early 2022"]
[White "Zierk, Steven"]
[Black "Sadovsky, Artem"]
[WhiteFideId "2034255"]
[BlackFideId "4155840"]
[WhiteElo "2488"]
[BlackElo "2276"]
[Result "1-0"]
[Round "01"]
[TimeControl "180+2"]
[Date "2022.12.27"]
[WhiteClock "0:00:47"]
[BlackClock "0:00:29"]

1. e4 {[%clk 0:02:55]}  g6 {[%clk 0:02:37]} 2. d4 {[%clk 0:02:54]}  Bg7 {[%clk 0:02:38]} 3. Nc3 {[%clk 0:02:55]}  c6 {[%clk 0:01:55]} 4. Nf3 {[%clk 0:02:53]}  d5 {[%clk 0:01:48]} 5. h3 {[%clk 0:02:53]}  dxe4 {[%clk 0:01:47]} 6. Nxe4 {[%clk 0:02:53]}  Nd7 {[%clk 0:01:47]} 7. Bc4 {[%clk 0:02:20]}  Ngf6 {[%clk 0:01:42]} 8. Nxf6+ {[%clk 0:02:18]}  Nxf6 {[%clk 0:01:39]} 9. O-O {[%clk 0:02:18]}  O-O {[%clk 0:01:39]} 10. c3 {[%clk 0:02:16]}  Qc7 {[%clk 0:01:37]} 11. Re1 {[%clk 0:02:14]}  c5 {[%clk 0:01:36]} 12. dxc5 {[%clk 0:02:09]}  Qxc5 {[%clk 0:01:37]} 13. Qb3 {[%clk 0:02:09]}  e6 {[%clk 0:01:32]} 14. Bf4 {[%clk 0:01:52]}  Nd5 {[%clk 0:01:27]} 15. Be5 {[%clk 0:01:48]}  b6 {[%clk 0:01:17]} 16. Bxg7 {[%clk 0:01:38]}  Kxg7 {[%clk 0:01:18]} 17. Bxd5 {[%clk 0:01:38]}  Qxd5 {[%clk 0:01:14]} 18. Qxd5 {[%clk 0:01:37]}  exd5 {[%clk 0:01:15]} 19. Rad1 {[%clk 0:01:37]}  Be6 {[%clk 0:01:15]} 20. Nd4 {[%clk 0:01:37]}  Rfe8 {[%clk 0:01:14]} 21. Re3 {[%clk 0:01:33]}  Rad8 {[%clk 0:01:11]} 22. Rde1 {[%clk 0:01:33]}  Bd7 {[%clk 0:01:10]} 23. Rxe8 {[%clk 0:01:31]}  Rxe8 {[%clk 0:01:10]} 24. Rxe8 {[%clk 0:01:31]}  Bxe8 {[%clk 0:01:11]} 25. f4 {[%clk 0:01:32]}  Kf6 {[%clk 0:01:10]} 26. Kf2 {[%clk 0:01:32]}  Ke7 {[%clk 0:01:10]} 27. Ke3 {[%clk 0:01:30]}  f6 {[%clk 0:01:11]} 28. Nc2 {[%clk 0:01:25]}  Kd6 {[%clk 0:01:11]} 29. Kd4 {[%clk 0:01:25]}  Bd7 {[%clk 0:01:04]} 30. Ne3 {[%clk 0:01:22]}  Be6 {[%clk 0:01:04]} 31. h4 {[%clk 0:01:21]}  Kc6 {[%clk 0:00:56]} 32. g4 {[%clk 0:01:12]}  Kd6 {[%clk 0:00:56]} 33. g5 {[%clk 0:01:04]}  fxg5 {[%clk 0:00:51]} 34. hxg5 {[%clk 0:01:01]}  Kc6 {[%clk 0:00:52]} 35. Ke5 {[%clk 0:01:00]}  d4 {[%clk 0:00:47]} 36. Nc2 {[%clk 0:00:52]}  Bxa2 {[%clk 0:00:39]} 37. Nb4+ {[%clk 0:00:48]}  Kd7 {[%clk 0:00:29]} 38. Nxa2 {[%clk 0:00:47]}  d3 {[%clk 0:00:29]} 39. c4 {[%clk 0:00:47]} 1-0


[Site "https://www.chess.com"]

[Event "Titled Tuesday Blitz December 27 Early 2022"]
[White "gshwbedhkhd"]
[Black "Araujo, Everson De Moura"]
[BlackFideId "22737197"]
[WhiteElo "2577"]
[BlackElo "1944"]
[Result "1-0"]
[Round "01"]
[TimeControl "180+2"]
[Date "2022.12.27"]
[WhiteClock "0:01:16"]
[BlackClock "0:00:02"]

1. e4 {[%clk 0:03:00]}  e6 {[%clk 0:03:00]} 2. d4 {[%clk 0:02:59]}  d5 {[%clk 0:03:01]} 3. Bd3 {[%clk 0:02:58]}  c5 {[%clk 0:03:00]} 4. exd5 {[%clk 0:02:57]}  Qxd5 {[%clk 0:02:54]} 5. Nc3 {[%clk 0:02:54]}  Qd8 {[%clk 0:02:46]} 6. Nf3 {[%clk 0:02:52]}  Nf6 {[%clk 0:02:40]} 7. Bf4 {[%clk 0:02:45]}  a6 {[%clk 0:02:39]} 8. O-O {[%clk 0:02:42]}  Nc6 {[%clk 0:02:31]} 9. Ne2 {[%clk 0:02:40]}  Be7 {[%clk 0:02:24]} 10. c3 {[%clk 0:02:38]}  O-O {[%clk 0:02:21]} 11. Qd2 {[%clk 0:02:36]}  Nh5 {[%clk 0:02:18]} 12. Be3 {[%clk 0:02:34]}  g6 {[%clk 0:02:13]} 13. dxc5 {[%clk 0:02:31]}  Qc7 {[%clk 0:02:08]} 14. Ned4 {[%clk 0:02:17]}  Bxc5 {[%clk 0:02:02]} 15. Nxe6 {[%clk 0:02:16]}  Bxe6 {[%clk 0:01:45]} 16. Bxc5 {[%clk 0:02:15]}  Rfd8 {[%clk 0:01:46]} 17. Qe3 {[%clk 0:02:14]}  Rd5 {[%clk 0:01:31]} 18. Bb6 {[%clk 0:02:12]}  Qd7 {[%clk 0:01:29]} 19. Bc4 {[%clk 0:02:11]}  Rf5 {[%clk 0:01:08]} 20. Rad1 {[%clk 0:02:09]}  Qe7 {[%clk 0:00:56]} 21. Bd3 {[%clk 0:01:45]}  Rxf3 {[%clk 0:00:42]} 22. Qxf3 {[%clk 0:01:36]}  Ne5 {[%clk 0:00:36]} 23. Qe2 {[%clk 0:01:30]}  Bg4 {[%clk 0:00:16]} 24. f3 {[%clk 0:01:27]}  Nf4 {[%clk 0:00:17]} 25. Qc2 {[%clk 0:01:25]}  Nexd3 {[%clk 0:00:15]} 26. fxg4 {[%clk 0:01:23]}  Ne2+ {[%clk 0:00:13]} 27. Kh1 {[%clk 0:01:22]}  Ndf4 {[%clk 0:00:11]} 28. Rde1 {[%clk 0:01:20]}  Qd6 {[%clk 0:00:05]} 29. Be3 {[%clk 0:01:16]}  Qc6 {[%clk 0:00:02]} 30. Bxf4 {[%clk 0:01:15]}  Nxf4 {[%clk 0:00:02]} 31. Rxf4 {[%clk 0:01:16]} 1-0


[Site "https://www.chess.com"]

[Event "Titled Tuesday Blitz December 27 Early 2022"]
[White "Alhadad, Mahmoud"]
[Black "Manukyan, Sargis A."]
[WhiteFideId "11501863"]
[BlackFideId "13303970"]
[WhiteElo "1840"]
[BlackElo "2158"]
[Result "0-1"]
[Round "02"]
[TimeControl "180+2"]
[Date "2022.12.27"]
[WhiteClock "0:00:01"]
[BlackClock "0:00:37"]

1. e4 {[%clk 0:02:59]}  e6 {[%clk 0:02:59]} 2. Nc3 {[%clk 0:02:58]}  d5 {[%clk 0:03:00]} 3. Nf3 {[%clk 0:02:58]}  Nf6 {[%clk 0:02:59]} 4. e5 {[%clk 0:02:58]}  Nfd7 {[%clk 0:02:59]} 5. d4 {[%clk 0:02:59]}  c5 {[%clk 0:02:59]} 6. dxc5 {[%clk 0:02:59]}  Nc6 {[%clk 0:02:58]} 7. Bf4 {[%clk 0:02:59]}  Bxc5 {[%clk 0:02:57]} 8. Bd3 {[%clk 0:02:59]}  Qb6 {[%clk 0:02:55]} 9. O-O {[%clk 0:02:59]}  Qxb2 {[%clk 0:02:55]} 10. Nb5 {[%clk 0:02:58]}  Qb4 {[%clk 0:02:36]} 11. Nc7+ {[%clk 0:02:50]}  Kd8 {[%clk 0:02:36]} 12. Bd2 {[%clk 0:02:49]}  Qg4 {[%clk 0:02:27]} 13. Nxa8 {[%clk 0:02:48]}  b6 {[%clk 0:02:25]} 14. Ng5 {[%clk 0:02:28]}  Qxd1 {[%clk 0:02:22]} 15. Raxd1 {[%clk 0:02:12]}  Ndxe5 {[%clk 0:02:17]} 16. Bf4 {[%clk 0:02:08]}  f6 {[%clk 0:02:13]} 17. Bxe5 {[%clk 0:01:53]}  Nxe5 {[%clk 0:02:11]} 18. Nf3 {[%clk 0:01:46]}  Nxf3+ {[%clk 0:02:06]} 19. gxf3 {[%clk 0:01:47]}  Bb7 {[%clk 0:02:05]} 20. Rfe1 {[%clk 0:01:46]}  e5 {[%clk 0:01:52]} 21. f4 {[%clk 0:01:37]}  Bd4 {[%clk 0:01:41]} 22. fxe5 {[%clk 0:01:36]}  fxe5 {[%clk 0:01:39]} 23. Nxb6 {[%clk 0:01:12]}  axb6 {[%clk 0:01:29]} 24. Bb5 {[%clk 0:01:03]}  Rf8 {[%clk 0:01:27]} 25. Re2 {[%clk 0:01:03]}  Kc7 {[%clk 0:01:24]} 26. Kg2 {[%clk 0:01:00]}  Kd6 {[%clk 0:01:23]} 27. Kg3 {[%clk 0:00:58]}  Rf6 {[%clk 0:01:18]} 28. h3 {[%clk 0:00:53]}  Rg6+ {[%clk 0:01:17]} 29. Kh2 {[%clk 0:00:52]}  Rf6 {[%clk 0:01:17]} 30. Kg3 {[%clk 0:00:46]}  Kc5 {[%clk 0:01:17]} 31. a4 {[%clk 0:00:43]}  e4 {[%clk 0:01:15]} 32. f4 {[%clk 0:00:19]}  exf3 {[%clk 0:01:09]} 33. Re7 {[%clk 0:00:19]}  Bc6 {[%clk 0:00:49]} 34. Bxc6 {[%clk 0:00:11]}  Kxc6 {[%clk 0:00:43]} 35. Rxd4 {[%clk 0:00:09]}  f2 {[%clk 0:00:42]} 36. Rd1 {[%clk 0:00:07]}  f1=Q {[%clk 0:00:40]} 37. Rxf1 {[%clk 0:00:07]}  Rxf1 {[%clk 0:00:41]} 38. Kg2 {[%clk 0:00:05]}  Rc1 {[%clk 0:00:39]} 39. Rxg7 {[%clk 0:00:05]}  Rxc2+ {[%clk 0:00:39]} 40. Kg3 {[%clk 0:00:04]}  Rc3+ {[%clk 0:00:39]} 41. Kg2 {[%clk 0:00:04]}  h5 {[%clk 0:00:38]} 42. Rg5 {[%clk 0:00:01]}  h4 {[%clk 0:00:37]} 0-1


[Site "https://www.chess.com"]

[Event "Titled Tuesday Blitz December 27 Early 2022"]
[White "Ankerst, Mihael"]
[Black "Papasimakopoulos, Alexandros"]
[WhiteFideId "14602369"]
[BlackFideId "4244125"]
[WhiteElo "2370"]
[BlackElo "2401"]
[Result "0-1"]
[Round "02"]
[TimeControl "180+2"]
[Date "2022.12.27"]
[WhiteClock "0:00:03"]
[BlackClock "0:00:17"]

1. e4 {[%clk 0:02:56]}  e6 {[%clk 0:02:59]} 2. d4 {[%clk 0:02:56]}  d5 {[%clk 0:02:59]} 3. Nc3 {[%clk 0:02:56]}  Bb4 {[%clk 0:02:58]} 4. e5 {[%clk 0:02:56]}  b6 {[%clk 0:02:58]} 5. Qg4 {[%clk 0:02:46]}  Bf8 {[%clk 0:02:58]} 6. Bb5+ {[%clk 0:02:45]}  Bd7 {[%clk 0:02:57]} 7. Bd3 {[%clk 0:02:45]}  c5 {[%clk 0:02:57]} 8. Nf3 {[%clk 0:02:43]}  cxd4 {[%clk 0:02:49]} 9. Nb5 {[%clk 0:02:42]}  Bxb5 {[%clk 0:02:39]} 10. Bxb5+ {[%clk 0:02:42]}  Nd7 {[%clk 0:02:39]} 11. O-O {[%clk 0:02:30]}  a6 {[%clk 0:02:38]} 12. Bd3 {[%clk 0:02:28]}  Ne7 {[%clk 0:02:32]} 13. h4 {[%clk 0:02:26]}  Nc6 {[%clk 0:02:23]} 14. Re1 {[%clk 0:02:25]}  Qc7 {[%clk 0:02:22]} 15. Qg3 {[%clk 0:02:24]}  f5 {[%clk 0:02:00]} 16. h5 {[%clk 0:02:14]}  Nc5 {[%clk 0:01:55]} 17. Bg5 {[%clk 0:02:07]}  Qf7 {[%clk 0:01:51]} 18. Qh4 {[%clk 0:01:50]}  h6 {[%clk 0:01:42]} 19. Bf4 {[%clk 0:01:40]}  Be7 {[%clk 0:01:41]} 20. Qh3 {[%clk 0:01:39]}  O-O {[%clk 0:01:37]} 21. Rad1 {[%clk 0:01:38]}  Ne4 {[%clk 0:01:31]} 22. a3 {[%clk 0:01:35]}  b5 {[%clk 0:01:29]} 23. Bf1 {[%clk 0:01:32]}  Rac8 {[%clk 0:01:26]} 24. Re2 {[%clk 0:01:31]}  Ng5 {[%clk 0:01:23]} 25. Qg3 {[%clk 0:01:29]}  Qxh5 {[%clk 0:01:21]} 26. Nxd4 {[%clk 0:01:28]}  Nxd4 {[%clk 0:01:20]} 27. Rxd4 {[%clk 0:01:28]}  Bc5 {[%clk 0:01:14]} 28. Rd1 {[%clk 0:01:20]}  Ne4 {[%clk 0:01:14]} 29. Qd3 {[%clk 0:01:13]}  Qh4 {[%clk 0:01:05]} 30. Qf3 {[%clk 0:01:09]}  g5 {[%clk 0:01:02]} 31. Be3 {[%clk 0:01:09]}  Bxe3 {[%clk 0:00:53]} 32. fxe3 {[%clk 0:01:08]}  Qg3 {[%clk 0:00:40]} 33. Qxg3 {[%clk 0:01:00]}  Nxg3 {[%clk 0:00:39]} 34. Red2 {[%clk 0:00:57]}  Nxf1 {[%clk 0:00:36]} 35. Kxf1 {[%clk 0:00:57]}  Rc4 {[%clk 0:00:36]} 36. Ke2 {[%clk 0:00:31]}  Rfc8 {[%clk 0:00:34]} 37. Kd3 {[%clk 0:00:31]}  Re4 {[%clk 0:00:35]} 38. Ra1 {[%clk 0:00:30]}  Kg7 {[%clk 0:00:31]} 39. c3 {[%clk 0:00:30]}  Kg6 {[%clk 0:00:29]} 40. g3 {[%clk 0:00:30]}  a5 {[%clk 0:00:26]} 41. a4 {[%clk 0:00:29]}  b4 {[%clk 0:00:26]} 42. Rc2 {[%clk 0:00:24]}  b3 {[%clk 0:00:24]} 43. Rd2 {[%clk 0:00:22]}  Rxe5 {[%clk 0:00:24]} 44. Ra3 {[%clk 0:00:21]}  Rb8 {[%clk 0:00:23]} 45. c4 {[%clk 0:00:16]}  dxc4+ {[%clk 0:00:23]} 46. Kxc4 {[%clk 0:00:16]}  Re4+ {[%clk 0:00:24]} 47. Kd3 {[%clk 0:00:15]}  Rg4 {[%clk 0:00:19]} 48. Kc3 {[%clk 0:00:12]}  Rxg3 {[%clk 0:00:19]} 49. Rd3 {[%clk 0:00:13]}  h5 {[%clk 0:00:19]} 50. Kd4 {[%clk 0:00:09]}  Kf6 {[%clk 0:00:18]} 51. Raxb3 {[%clk 0:00:08]}  Rxb3 {[%clk 0:00:17]} 52. Rxb3 {[%clk 0:00:09]}  h4 {[%clk 0:00:18]} 53. Rb8 {[%clk 0:00:08]}  h3 {[%clk 0:00:17]} 54. Rh8 {[%clk 0:00:08]}  Kg7 {[%clk 0:00:17]} 55. Rh5 {[%clk 0:00:06]}  g4 {[%clk 0:00:15]} 56. b4 {[%clk 0:00:05]}  axb4 {[%clk 0:00:16]} 57. a5 {[%clk 0:00:05]}  Rg2 {[%clk 0:00:16]} 58. Kc4 {[%clk 0:00:05]}  h2 {[%clk 0:00:14]} 59. Kxb4 {[%clk 0:00:04]}  g3 {[%clk 0:00:15]} 60. a6 {[%clk 0:00:04]}  Ra2 {[%clk 0:00:15]} 61. Kb5 {[%clk 0:00:05]}  Ra1 {[%clk 0:00:15]} 62. Kb6 {[%clk 0:00:03]}  h1=Q {[%clk 0:00:15]} 63. Rxh1 {[%clk 0:00:02]}  Rxh1 {[%clk 0:00:16]} 64. a7 {[%clk 0:00:02]}  Ra1 {[%clk 0:00:17]} 65. Kb7 {[%clk 0:00:03]}  g2 {[%clk 0:00:17]} 66. a8=Q {[%clk 0:00:03]}  Rxa8 {[%clk 0:00:17]} 67. Kxa8 {[%clk 0:00:03]}  g1=Q {[%clk 0:00:18]} 68. e4 {[%clk 0:00:03]}  Qb6 {[%clk 0:00:17]} 69. exf5 {[%clk 0:00:03]}  Qb5 {[%clk 0:00:17]} 0-1


[Site "https://www.chess.com"]

[Event "Titled Tuesday Blitz December 27 Early 2022"]
[White "Antonio, Jorge Carlos"]
[Black "Andreev, Konstantin"]
[WhiteFideId "113190"]
[BlackFideId "24239305"]
[WhiteElo "2277"]
[BlackElo "2195"]
[Result "1-0"]
[Round "02"]
[TimeControl "180+2"]
[Date "2022.12.27"]
[WhiteClock "0:00:07"]
[BlackClock "0:00:04"]

1. d4 {[%clk 0:03:00]}  Nf6 {[%clk 0:02:59]} 2. Nf3 {[%clk 0:02:59]}  d5 {[%clk 0:02:59]} 3. Bf4 {[%clk 0:02:54]}  c5 {[%clk 0:02:57]} 4. e3 {[%clk 0:02:51]}  Nc6 {[%clk 0:02:52]} 5. c3 {[%clk 0:02:51]}  Qb6 {[%clk 0:02:52]} 6. Qc2 {[%clk 0:02:48]}  Qd8 {[%clk 0:02:51]} 7. dxc5 {[%clk 0:02:44]}  a5 {[%clk 0:02:45]} 8. Bb5 {[%clk 0:02:40]}  e6 {[%clk 0:02:44]} 9. b4 {[%clk 0:02:35]}  Bd7 {[%clk 0:02:42]} 10. a4 {[%clk 0:02:32]}  axb4 {[%clk 0:02:40]} 11. Bxc6 {[%clk 0:02:29]}  Bxc6 {[%clk 0:02:35]} 12. cxb4 {[%clk 0:02:30]}  b6 {[%clk 0:02:27]} 13. Nd4 {[%clk 0:02:24]}  Bb7 {[%clk 0:02:19]} 14. c6 {[%clk 0:02:03]}  Bxb4+ {[%clk 0:02:17]} 15. Nd2 {[%clk 0:01:59]}  Ba6 {[%clk 0:02:15]} 16. Rb1 {[%clk 0:01:56]}  Qe7 {[%clk 0:02:05]} 17. c7 {[%clk 0:01:50]}  Ne4 {[%clk 0:01:21]} 18. Qc6+ {[%clk 0:01:40]}  Qd7 {[%clk 0:01:17]} 19. Qxa8+ {[%clk 0:01:39]}  Ke7 {[%clk 0:01:17]} 20. Qxa6 {[%clk 0:01:28]}  Bxd2+ {[%clk 0:01:14]} 21. Kf1 {[%clk 0:01:25]}  f6 {[%clk 0:00:54]} 22. f3 {[%clk 0:01:18]}  e5 {[%clk 0:00:34]} 23. fxe4 {[%clk 0:01:14]}  exd4 {[%clk 0:00:33]} 24. exd5 {[%clk 0:01:11]}  Qf5 {[%clk 0:00:28]} 25. d6+ {[%clk 0:01:06]}  Kf7 {[%clk 0:00:27]} 26. Qc4+ {[%clk 0:01:03]}  Kg6 {[%clk 0:00:27]} 27. g4 {[%clk 0:00:46]}  Qxb1+ {[%clk 0:00:24]} 28. Ke2 {[%clk 0:00:41]}  Qxh1 {[%clk 0:00:15]} 29. Qd3+ {[%clk 0:00:36]}  Kf7 {[%clk 0:00:15]} 30. Qb3+ {[%clk 0:00:24]}  Kg6 {[%clk 0:00:12]} 31. Kxd2 {[%clk 0:00:21]}  Qg2+ {[%clk 0:00:09]} 32. Kc1 {[%clk 0:00:18]}  Qc6+ {[%clk 0:00:08]} 33. Qc2+ {[%clk 0:00:11]}  Qxc2+ {[%clk 0:00:06]} 34. Kxc2 {[%clk 0:00:12]}  d3+ {[%clk 0:00:05]} 35. Kxd3 {[%clk 0:00:11]}  Kf7 {[%clk 0:00:05]} 36. d7 {[%clk 0:00:11]}  Ke7 {[%clk 0:00:06]} 37. c8=Q {[%clk 0:00:12]}  Rd8 {[%clk 0:00:06]} 38. Ke2 {[%clk 0:00:09]}  Rxd7 {[%clk 0:00:03]} 39. Qg8 {[%clk 0:00:08]}  g5 {[%clk 0:00:01]} 40. Qxh7+ {[%clk 0:00:08]}  Ke6 {[%clk 0:00:01]} 41. Qxd7+ {[%clk 0:00:08]}  Kxd7 {[%clk 0:00:02]} 42. Bg3 {[%clk 0:00:07]}  Kc6 {[%clk 0:00:02]} 43. Kd3 {[%clk 0:00:08]}  Kc5 {[%clk 0:00:03]} 44. Ke4 {[%clk 0:00:07]}  Kb4 {[%clk 0:00:03]} 45. Bc7 {[%clk 0:00:07]}  Kxa4 {[%clk 0:00:04]} 46. Bxb6 {[%clk 0:00:07]} 1-0


[Site "https://www.chess.com"]

[Event "Titled Tuesday Blitz December 27 Early 2022"]
[White "Aravindh, Chithambaram VR."]
[Black "Ilkhomi, Jaloliddin"]
[WhiteFideId "5072786"]
[BlackFideId "14700948"]
[WhiteElo "2633"]
[BlackElo "1997"]
[Result "1-0"]
[Round "02"]
[TimeControl "180+2"]
[Date "2022.12.27"]
[WhiteClock "0:01:14"]
[BlackClock "0:00:05"]

1. b3 {[%clk 0:02:58]}  Nf6 {[%clk 0:02:59]} 2. Bb2 {[%clk 0:02:59]}  e6 {[%clk 0:03:00]} 3. Nf3 {[%clk 0:02:59]}  b6 {[%clk 0:03:00]} 4. g3 {[%clk 0:02:58]}  Bb7 {[%clk 0:03:00]} 5. Bg2 {[%clk 0:02:59]}  Be7 {[%clk 0:03:01]} 6. O-O {[%clk 0:03:00]}  O-O {[%clk 0:03:02]} 7. c4 {[%clk 0:03:00]}  d5 {[%clk 0:03:02]} 8. Ne5 {[%clk 0:02:59]}  Nbd7 {[%clk 0:03:00]} 9. d4 {[%clk 0:02:58]}  c5 {[%clk 0:02:57]} 10. dxc5 {[%clk 0:02:50]}  bxc5 {[%clk 0:02:45]} 11. Nd2 {[%clk 0:02:34]}  Nxe5 {[%clk 0:02:24]} 12. Bxe5 {[%clk 0:02:35]}  Nd7 {[%clk 0:02:24]} 13. Bb2 {[%clk 0:02:33]}  Bf6 {[%clk 0:02:21]} 14. Bxf6 {[%clk 0:02:31]}  Nxf6 {[%clk 0:02:18]} 15. Rc1 {[%clk 0:02:28]}  Qb6 {[%clk 0:02:14]} 16. cxd5 {[%clk 0:02:27]}  Bxd5 {[%clk 0:01:45]} 17. e4 {[%clk 0:02:20]}  Bb7 {[%clk 0:01:38]} 18. Nc4 {[%clk 0:02:16]}  Qc7 {[%clk 0:01:35]} 19. Qd6 {[%clk 0:02:05]}  Rac8 {[%clk 0:01:21]} 20. e5 {[%clk 0:01:57]}  Bxg2 {[%clk 0:01:10]} 21. Qxc7 {[%clk 0:01:56]}  Rxc7 {[%clk 0:01:06]} 22. Kxg2 {[%clk 0:01:57]}  Nd5 {[%clk 0:00:52]} 23. Nd6 {[%clk 0:01:57]}  Rd8 {[%clk 0:00:48]} 24. Nb5 {[%clk 0:01:49]}  Rc6 {[%clk 0:00:40]} 25. Rc4 {[%clk 0:01:41]}  a6 {[%clk 0:00:37]} 26. Nd6 {[%clk 0:01:38]}  f6 {[%clk 0:00:37]} 27. Ne4 {[%clk 0:01:33]}  fxe5 {[%clk 0:00:27]} 28. Rfc1 {[%clk 0:01:16]}  Nb4 {[%clk 0:00:19]} 29. Rxb4 {[%clk 0:01:16]}  cxb4 {[%clk 0:00:04]} 30. Rxc6 {[%clk 0:01:17]}  Rd4 {[%clk 0:00:05]} 31. Ng5 {[%clk 0:01:15]}  Rd2 {[%clk 0:00:05]} 32. Rc8+ {[%clk 0:01:14]} 1-0


[Site "https://www.chess.com"]

[Event "Titled Tuesday Blitz December 27 Early 2022"]
[White "Atakishiyev, Elmar"]
[Black "Hoffmann, Asa"]
[WhiteFideId "13410547"]
[BlackFideId "2001470"]
[WhiteElo "2363"]
[BlackElo "2185"]
[Result "1-0"]
[Round "02"]
[TimeControl "180+2"]
[Date "2022.12.27"]
[WhiteClock "0:00:15"]
[BlackClock "0:00:24"]

1. Nf3 {[%clk 0:03:00]}  d6 {[%clk 0:02:56]} 2. g3 {[%clk 0:02:59]}  c6 {[%clk 0:02:56]} 3. Bg2 {[%clk 0:02:59]}  e5 {[%clk 0:02:55]} 4. O-O {[%clk 0:02:59]}  Nf6 {[%clk 0:02:55]} 5. b3 {[%clk 0:02:58]}  Be7 {[%clk 0:02:55]} 6. Bb2 {[%clk 0:02:57]}  O-O {[%clk 0:02:54]} 7. c4 {[%clk 0:02:56]}  c5 {[%clk 0:02:48]} 8. e3 {[%clk 0:02:53]}  Nc6 {[%clk 0:02:47]} 9. d4 {[%clk 0:02:53]}  cxd4 {[%clk 0:02:41]} 10. exd4 {[%clk 0:02:52]}  e4 {[%clk 0:02:40]} 11. Nfd2 {[%clk 0:02:52]}  Bf5 {[%clk 0:02:40]} 12. Nc3 {[%clk 0:02:49]}  d5 {[%clk 0:02:39]} 13. cxd5 {[%clk 0:02:48]}  Nxd4 {[%clk 0:02:31]} 14. Ncxe4 {[%clk 0:02:47]}  Nxe4 {[%clk 0:02:22]} 15. Nxe4 {[%clk 0:02:42]}  Nb5 {[%clk 0:02:07]} 16. a4 {[%clk 0:02:28]}  Nd6 {[%clk 0:02:07]} 17. Qd4 {[%clk 0:02:27]}  f6 {[%clk 0:02:00]} 18. Nc5 {[%clk 0:02:27]}  Qb6 {[%clk 0:01:45]} 19. Ne6 {[%clk 0:02:04]}  Qxd4 {[%clk 0:01:36]} 20. Bxd4 {[%clk 0:02:02]}  Rfc8 {[%clk 0:01:30]} 21. Rac1 {[%clk 0:02:00]}  Kf7 {[%clk 0:01:29]} 22. Nc7 {[%clk 0:01:56]}  Be4 {[%clk 0:01:06]} 23. Nxa8 {[%clk 0:01:53]}  Rxa8 {[%clk 0:01:05]} 24. Bc5 {[%clk 0:01:43]}  Bxg2 {[%clk 0:01:02]} 25. Kxg2 {[%clk 0:01:42]}  b6 {[%clk 0:01:02]} 26. Ba3 {[%clk 0:01:38]}  Ne8 {[%clk 0:00:57]} 27. Bxe7 {[%clk 0:01:28]}  Kxe7 {[%clk 0:00:56]} 28. Rfd1 {[%clk 0:01:09]}  Rd8 {[%clk 0:00:55]} 29. Re1+ {[%clk 0:01:05]}  Kd7 {[%clk 0:00:55]} 30. h4 {[%clk 0:01:01]}  Nd6 {[%clk 0:00:54]} 31. g4 {[%clk 0:01:01]}  Nb7 {[%clk 0:00:53]} 32. b4 {[%clk 0:01:00]}  a5 {[%clk 0:00:53]} 33. bxa5 {[%clk 0:01:00]}  Nxa5 {[%clk 0:00:51]} 34. Re6 {[%clk 0:00:55]}  Nb3 {[%clk 0:00:48]} 35. Rce1 {[%clk 0:00:52]}  Nc5 {[%clk 0:00:46]} 36. Rxb6 {[%clk 0:00:50]}  Nxa4 {[%clk 0:00:45]} 37. Rb7+ {[%clk 0:00:50]}  Kd6 {[%clk 0:00:45]} 38. Rxg7 {[%clk 0:00:50]}  Nc3 {[%clk 0:00:43]} 39. Rxh7 {[%clk 0:00:48]}  Nxd5 {[%clk 0:00:42]} 40. Kf3 {[%clk 0:00:48]}  Ra8 {[%clk 0:00:41]} 41. g5 {[%clk 0:00:42]}  Ra3+ {[%clk 0:00:40]} 42. Kg4 {[%clk 0:00:37]}  Ra4+ {[%clk 0:00:40]} 43. Kh5 {[%clk 0:00:34]}  Nf4+ {[%clk 0:00:36]} 44. Kh6 {[%clk 0:00:33]}  fxg5 {[%clk 0:00:33]} 45. hxg5 {[%clk 0:00:32]}  Ra2 {[%clk 0:00:32]} 46. Rf7 {[%clk 0:00:17]}  Rxf2 {[%clk 0:00:29]} 47. g6 {[%clk 0:00:15]}  Rh2+ {[%clk 0:00:28]} 48. Kg7 {[%clk 0:00:16]}  Ne6+ {[%clk 0:00:26]} 49. Kg8 {[%clk 0:00:15]}  Rg2 {[%clk 0:00:26]} 50. Rf6 {[%clk 0:00:15]}  Kd7 {[%clk 0:00:24]} 51. Rfxe6 {[%clk 0:00:15]} 1-0


[Site "https://www.chess.com"]

[Event "Titled Tuesday Blitz December 27 Early 2022"]
[White "Babazada, Khazar"]
[Black "Mohammed, Zozek Salah Mohammed"]
[WhiteFideId "13413554"]
[BlackFideId "4803361"]
[WhiteElo "2474"]
[BlackElo "2210"]
[Result "1-0"]
[Round "02"]
[TimeControl "180+2"]
[Date "2022.12.27"]
[WhiteClock "0:00:48"]
[BlackClock "0:00:28"]

1. e4 {[%clk 0:03:00]}  d5 {[%clk 0:02:53]} 2. exd5 {[%clk 0:03:00]}  Qxd5 {[%clk 0:02:51]} 3. Nc3 {[%clk 0:03:00]}  Qd8 {[%clk 0:02:51]} 4. Nf3 {[%clk 0:03:01]}  Nf6 {[%clk 0:02:50]} 5. d4 {[%clk 0:03:01]}  a6 {[%clk 0:02:51]} 6. Bc4 {[%clk 0:03:01]}  b5 {[%clk 0:02:50]} 7. Bb3 {[%clk 0:03:00]}  c5 {[%clk 0:02:50]} 8. a4 {[%clk 0:02:43]}  c4 {[%clk 0:02:41]} 9. Ba2 {[%clk 0:02:42]}  Bd7 {[%clk 0:02:26]} 10. O-O {[%clk 0:02:41]}  e6 {[%clk 0:02:26]} 11. Ne5 {[%clk 0:02:39]}  Bd6 {[%clk 0:02:24]} 12. Re1 {[%clk 0:02:19]}  O-O {[%clk 0:02:22]} 13. Bg5 {[%clk 0:02:18]}  Be7 {[%clk 0:02:10]} 14. Qf3 {[%clk 0:01:44]}  Ra7 {[%clk 0:01:56]} 15. Rad1 {[%clk 0:01:44]}  Nd5 {[%clk 0:01:26]} 16. Bxe7 {[%clk 0:01:42]}  Nxe7 {[%clk 0:01:22]} 17. Ne4 {[%clk 0:01:41]}  Nbc6 {[%clk 0:01:12]} 18. c3 {[%clk 0:01:33]}  Nxe5 {[%clk 0:01:02]} 19. dxe5 {[%clk 0:01:34]}  Qa8 {[%clk 0:01:02]} 20. Bb1 {[%clk 0:01:22]}  Bc6 {[%clk 0:01:00]} 21. Qh5 {[%clk 0:01:09]}  Ng6 {[%clk 0:00:54]} 22. Ng5 {[%clk 0:01:06]}  h6 {[%clk 0:00:48]} 23. Nxe6 {[%clk 0:01:05]}  fxe6 {[%clk 0:00:46]} 24. Qxg6 {[%clk 0:01:05]}  Bd5 {[%clk 0:00:29]} 25. Qh7+ {[%clk 0:00:46]}  Kf7 {[%clk 0:00:29]} 26. Bg6+ {[%clk 0:00:47]}  Ke7 {[%clk 0:00:29]} 27. Qxg7+ {[%clk 0:00:48]}  Kd8 {[%clk 0:00:28]} 28. Qxf8+ {[%clk 0:00:48]} 1-0


[Site "https://www.chess.com"]